Cogmind - Beta 16.1 @@@ ROGUE MODE // 2026.03.12 @ 18:30:20 Player: ae Result: Destroyed by S-27 Virus with Autogun Performance ------------- Evolutions (5) 2500 Regions Visited (7) 1400 Robots Destroyed (21) 105 Value Destroyed (593) 593 Prototype IDs (13) 260 Alien Tech Used (0) 0 Bonus (349) 349 TOTAL SCORE: 5207 Bonus ------- Follower Combat Kills 49 Registered with UFD 300 Cogmind --------- Core Integrity 0/1000 Matter 277/300 Energy 98/100 System Corruption 7% Temperature Cool (0) Movement Core (50) Location -5/Upper Caves Parts ------- > --- POWER (1) -------- (None) > --- PROPULSION (4) --- (None) > --- UTILITY (10) ----- Improved Signal Interpreter Surveybot 17 Chip > --- WEAPON (2) ------- (None) > --- INVENTORY (5) ---- Deep Structural Scanner Long-range Missile Launcher Peak State ------------ > --- POWER ------------ Backup Power III > --- PROPULSION ------- Backup Propulsion III VTOL Module > --- UTILITY ---------- Improved Sensor Array Advanced Signal Interpreter Improved Terrain Scanner Surveybot 17 Chip Improved Hacking Suite Improved Hacking Suite Improved System Shield System Guard > --- WEAPON ----------- Backup Laser III Backup Laser III > --- INVENTORY -------- Deep Structural Scanner Improved Signal Interpreter ECM Suite Phase Cannon Long-range Missile Launcher [Rating: 53] Favorites ----------- Power Light Ion Engine Engine Light Ion Engine Propulsion Armored Wheel Treads Light Treads Wheel Armored Wheel Hover Unit Backup Propulsion III Flight Unit VTOL Module Utility Improved Terrain Scanner Device Improved Terrain Scanner Storage Small Storage Unit Processor Surveybot 17 Chip Hackware Improved Hacking Suite Weapon Heavy Assault Rifle Energy Gun Small Laser Energy Cannon Phase Cannon Ballistic Gun Heavy Assault Rifle Launcher Heavy Missile Launcher Build | -11 -10 -10 -8 -6 -5 -5 -5 ------- Run | Yrd Mat Sub Scr Fac Fac Upp Upp Slots Evolved 10 | . . . . 8 2 . . Power . | . . . . . . . . Propulsion 2 | . . . . 2 . . . Utility 8 | . . . . 6 2 . . Weapon . | . . . . . . . . Parts Attached 40 | 8 6 . 1 19 2 1 3 Power 4 | 1 . . 1 1 . . 1 Engine 4 | 1 . . 1 1 . . 1 Core . | . . . . . . . . Reactor . | . . . . . . . . Propulsion 12 | 2 4 . . 3 1 . 2 Treads 2 | 2 . . . . . . . Leg . | . . . . . . . . Wheel 4 | . 4 . . . . . . Hover 1 | . . . . . 1 . . Flight 5 | . . . . 3 . . 2 Utility 15 | 2 . . . 12 1 . . Device 6 | 1 . . . 5 . . . Storage 1 | 1 . . . . . . . Processor 4 | . . . . 3 1 . . Hackware 4 | . . . . 4 . . . Protection . | . . . . . . . . Artifact . | . . . . . . . . Weapon 9 | 3 2 . . 3 . 1 . Energy Gun 4 | 3 . . . 1 . . . Energy Cannon 1 | . . . . 1 . . . Ballistic Gun 2 | . 2 . . . . . . Ballistic Cannon . | . . . . . . . . Launcher 2 | . . . . 1 . 1 . Special Weapon . | . . . . . . . . Impact Weapon . | . . . . . . . . Slashing Weapon . | . . . . . . . . Piercing Weapon . | . . . . . . . . Special Melee Weapon . | . . . . . . . . Unidentified Prototypes 3 | . . . . 2 1 . . Parts Lost 16 | . . . . 2 6 2 6 Power 1 | . . . . . . . 1 Propulsion 6 | . . . . 2 2 . 2 Utility 8 | . . . . . 4 2 2 Weapon 1 | . . . . . . . 1 Highest Loss Streak 3 | . . . . 2 2 3 3 To Critical Strikes . | . . . . . . . . Average Backups 7 | 5 8 7 7 6 4 4 3 Power . | . 1 1 . . . 1 . Propulsion 2 | 3 4 3 3 . . . . Utility 3 | . 2 2 3 3 2 2 1 Weapon . | . 1 1 . 1 2 1 1 Tool/Special . | . . . . . . . . Unused Backups 9 | . . 2 3 3 . . 1 Power . | . . . . . . . . Propulsion 3 | . . 2 1 . . . . Utility 5 | . . . 1 3 . . 1 Weapon 1 | . . . 1 . . . . Tool/Special . | . . . . . . . . Average Slot Usage (%) 83 | . 100 100 100 54 48 21 18 Engine 10 | . 14 14 14 2 . . . Wheel 20 | . 24 28 28 . . . . Flight 1 | . . . . 11 1 . . Device 11 | . 14 14 14 10 8 . . Storage 10 | . 14 14 14 2 . . . Processor 4 | . . . . 13 20 17 14 Hackware 1 | . . . . 6 13 3 . Ballistic Gun 20 | . 20 28 28 3 . . . Peak Build Rating 53 | 9 13 14 15 49 53 26 24 Average Rating 17 | 5 12 13 14 31 37 19 15 On Entrance 16 | . 9 13 14 15 41 26 16 Avg Prop Armor Cover (%) 11 | . . . . 12 9 . . Naked Turns . | . . . . . . . . Heaviest Build 15 | 11 15 15 15 15 8 . 8 Greatest Support 40 | 40 40 24 24 15 8 3 8 Greatest Overweight (x) 2 | . . . . . 1 . 2 Average Overweight (x) . | . . . . . . . . Largest Inventory Capacity 8 | 8 8 8 8 8 5 5 5 Average Capacity 7 | 7 8 8 8 6 5 5 5 Most Carried 8 | 8 8 8 8 8 5 5 5 Average Carried 7 | 5 7 7 7 6 4 4 3 Final Capacity 8 | 8 8 8 8 5 5 5 5 Final Carried 8 | 8 8 8 8 5 5 5 2 Class Distribution -------------------- 84% | Mutant 5% | Scout 4% | Hacker-Scout 3% | Hacker-Mutant Dominant Class ---------------- Mutant | -10/Materials Mutant | -10/Subcaves Mutant | -8/Scraptown Scout | -6/Factory Hacker-Scout | -5/Factory Mutant | -5/Upper Caves Mutant | -5/Upper Caves Resources | -11 -10 -10 -8 -6 -5 -5 -5 ----------- Run | Yrd Mat Sub Scr Fac Fac Upp Upp Matter Collected 950 | 363 147 42 . 22 . 101 275 Remotely . | . . . . . . . . Salvage Created 462 | 174 . 74 . 82 . 71 61 Parts 37 | 9 . 7 . 10 . 9 2 Haulers Intercepted . | . . . . . . . . Recyclers Shooed 2 | 2 . . . . . . . Parts Field Recycled . | . . . . . . . . Retrieved Matter . | . . . . . . . . Parts Self-Destructed 9 | . . 4 . . . 5 . Prevented . | . . . . . . . . Parts Restored . | . . . . . . . . Kills | -11 -10 -10 -8 -6 -5 -5 -5 ------- Run | Yrd Mat Sub Scr Fac Fac Upp Upp Combat Hostiles Destroyed 16 | . . 3 . 4 . 7 2 Guns 3 | . . 3 . . . . . Cannons 2 | . . . . . . 1 1 AOE 11 | . . . . 4 . 6 1 Classes Destroyed 7 | 3 . 2 . 1 . . 1 Worker 2 | 2 . . . . . . . Tunneler 1 | 1 . . . . . . . Recycler 1 | 1 . . . . . . . Operator 1 | . . . . 1 . . . Swarmer 13 | . . 1 . 4 . 7 1 Programmer 1 | . . . . . . . 1 Subdweller 2 | . . 2 . . . . . Best Kill Streak 7 | 3 . 2 . 4 . 7 1 Combat Bots Only 7 | . . 2 . 4 . 7 1 Max Kills in Single Turn 4 | 1 . 1 . 4 . 3 1 Gunslinging . | . . . . . . . . Exploded 4 | . . . . 4 . 3 1 Melee . | . . . . . . . . Uniques/NPCs Destroyed . | . . . . . . . . Combat | -11 -10 -10 -8 -6 -5 -5 -5 -------- Run | Yrd Mat Sub Scr Fac Fac Upp Upp Hostile Shots Fired 178 | . . 7 . 48 31 30 62 Missed 75 | . . 1 . 29 6 13 26 Hits 103 | . . 6 . 19 25 17 36 Projectile 103 | . . 6 . 19 25 17 36 Critical Strikes 7 | . . . . 3 1 1 2 Damage Taken 1963 | . . 129 . 312 516 285 721 Core 1096 | . . . . 94 359 167 476 Absorbed by Shields . | . . . . . . . . Core Remaining (%) 96 | 100 . . 100 88 . . . Volleys Fired 64 | 25 1 6 . 9 . 4 19 Largest 2 | 2 2 2 . 2 . 1 1 Hottest 85 | 80 46 46 . 85 . 85 85 Shots Fired 78 | 31 2 12 . 10 . 4 19 Gun 46 | 31 2 12 . 1 . . . Cannon 25 | . . . . 7 . 1 17 Launcher 7 | . . . . 2 . 3 2 Special . | . . . . . . . . Kinetic 15 | . 2 12 . 1 . . . Thermal 54 | 29 . . . 7 . 1 17 Explosive 7 | . . . . 2 . 3 2 Electromagnetic 2 | 2 . . . . . . . Robot Hit Streak 11 | 11 1 8 . 2 . 5 4 Robot Miss Streak 3 | 3 1 1 . 1 . . 3 Penetration Max . | . . . . . . . . Secondary Targets . | . . . . . . . . Shots Hit Robots 50 | 22 1 9 . 4 . 3 11 Core Hits 30 | 5 . 4 . 7 2 10 2 Critical Kills 1 | . . 1 . . . . . Critical Parts Destroyed . | . . . . . . . . Critical Strikes 1 | . . 1 . . . . . Destroy 1 | . . 1 . . . . . Melee Attacks . | . . . . . . . . Impact . | . . . . . . . . Slashing . | . . . . . . . . Piercing . | . . . . . . . . Sneak Attacks . | . . . . . . . . Combat Hostiles . | . . . . . . . . Follow-up Attacks . | . . . . . . . . Damage Inflicted 2163 | 273 17 136 . 436 49 840 412 Guns 440 | 273 17 136 . 14 . . . Cannons 445 | . . . . 90 . 30 325 Explosions 1229 | . . . . 332 . 810 87 Melee . | . . . . . . . . Ramming 49 | . . . . . 49 . . Kinetic 167 | . 17 136 . 14 . . . Thermal 703 | 258 . . . 90 . 30 325 Explosive 1229 | . . . . 332 . 810 87 Electromagnetic 15 | 15 . . . . . . . Impact . | . . . . . . . . Slashing . | . . . . . . . . Piercing . | . . . . . . . . Highest Corruption 7 | . . . . . . 1 7 Average Corruption 2 | . . . . . . 1 4 Corruption Purged . | . . . . . . . . Corruption Blocked . | . . . . . . . . Effects 7 | . . . . . . 2 5 Message Errors 1 | . . . . . . 1 . Matter Fused 3 | . . . . . . 1 2 Data Loss (minor) 3 | . . . . . . . 3 Overload Shots . | . . . . . . . . Overflow Damage 117 | . . . . 29 . 56 32 Projectiles 44 | . . . . 12 . . 32 Explosions 73 | . . . . 17 . 56 . Melee . | . . . . . . . . Knockbacks . | . . . . . . . . Impact . | . . . . . . . . Kinetic . | . . . . . . . . Secondary . | . . . . . . . . Self-Inflicted Damage 37 | . . . . . 21 12 4 Shots 2 | . . . . . . 1 1 Rammed 15 | . . . . . 15 . . Targets Rammed 15 | . . . . . 15 . . Kicked . | . . . . . . . . Crushed . | . . . . . . . . Highest Temperature 72 | 72 . . . 38 . 4 28 Average Temperature 19 | 33 . . . 13 . 3 10 Received Heat Transfer 432 | . . . . 186 147 63 36 Siege Activations . | . . . . . . . . Martial Activations . | . . . . . . . . Shielding Activations . | . . . . . . . . Robots Disrupted . | . . . . . . . . Combat Hostiles . | . . . . . . . . Robots Corrupted . | . . . . . . . . Combat Hostiles . | . . . . . . . . Parts Fried . | . . . . . . . . Impact Corruptions . | . . . . . . . . Robots Melted . | . . . . . . . . Combat Hostiles . | . . . . . . . . Parts Melted 1 | 1 . . . . . . . Heat Transferred 1056 | 575 . . . 111 . 37 333 Parts Sabotaged . | . . . . . . . . Parts Stolen . | . . . . . . . . Parts Stripped . | . . . . . . . . Power Chain Reactions . | . . . . . . . . Alert | -11 -10 -10 -8 -6 -5 -5 -5 ------- Run | Yrd Mat Sub Scr Fac Fac Upp Upp Maximum Alert Level 1 | . . . . 1 . . . Low Security (%) 76 | 100 100 . . 40 100 . . Level 1 23 | . . . . 59 . . . Level 2 . | . . . . . . . . Level 3 . | . . . . . . . . Level 4 . | . . . . . . . . Level 5 . | . . . . . . . . High Security . | . . . . . . . . Max Security . | . . . . . . . . Peak Influence 301 | 5 10 . . 301 79 . . Initial 79 | . . . . . 79 . . Average 84 | 1 . . . 193 37 . . Influence Increases 1019 | 20 10 20 . 463 111 300 95 Destroy 0b10 Robot/C 300 | . . 20 . 80 20 140 40 Destroy 0b10 Robot/NC 25 | 20 . . . 5 . . . Destroy Leader 30 | . . . . 10 . 10 10 Allied During Kill 2 | . . . . . 2 . . Successful Hack 28 | . 10 . . 8 10 . . Select Force Hacks 30 | . . . . 30 . . . Disable Machine 105 | . . . . 105 . . . Destroy Structure 19 | . . . . 15 4 . . Partial Spotted 15 | . . . . 15 . . . Lose Combat Pursuer 465 | . . . . 195 75 150 45 Influence Decreases 931 | 20 10 20 . 300 249 110 222 Entered New Map 136 | . . . . . 84 10 42 Time Decay 515 | 20 10 20 . 180 85 80 120 Search Patrol Dispatched 100 | . . . . 100 . . . Lost Part 140 | . . . . 20 40 20 60 Lost Ally 40 | . . . . . 40 . . Squads Dispatched 8 | . 4 . . 3 . . 1 Investigation 4 | . 3 . . 1 . . . Extermination . | . . . . . . . . Reinforcement 3 | . 1 . . 2 . . . Assault 1 | . . . . . . . 1 Garrison . | . . . . . . . . Intercept . | . . . . . . . . Searches Triggered 1 | . . . . 1 . . . Construction Impeded 1 | . . . . 1 . . . Haulers Reinforced . | . . . . . . . . Active Scanning Responses . | . . . . . . . . Cargo Convoy Interrupts . | . . . . . . . . Stealth | -11 -10 -10 -8 -6 -5 -5 -5 --------- Run | Yrd Mat Sub Scr Fac Fac Upp Upp Distress Signals 2 | . . . . 2 . . . Communications Jammed . | . . . . . . . . Distress Signals . | . . . . . . . . Times Spotted 68 | . 4 4 . 22 10 17 11 Peak Tracking Total 13 | . 2 2 . 13 5 11 7 Tactical Retreats 16 | . . . . 5 2 6 3 Traps | -11 -10 -10 -8 -6 -5 -5 -5 ------- Run | Yrd Mat Sub Scr Fac Fac Upp Upp Traps Triggered 1 | . . . . 1 . . . Indirectly . | . . . . . . . . Trap Hack Attempts . | . . . . . . . . Triggered . | . . . . . . . . Disarmed . | . . . . . . . . Reprogrammed . | . . . . . . . . Reused 1 | . . 1 . . . . . Traps Extracted . | . . . . . . . . Installed 1 | . . 1 . . . . . Triggered . | . . . . . . . . Most Traps Carried 1 | . . 1 . . . . . Machines | -11 -10 -10 -8 -6 -5 -5 -5 ---------- Run | Yrd Mat Sub Scr Fac Fac Upp Upp Machines Disabled 8 | . . . . 7 . 1 . Max in Single Turn 4 | . . . . 4 . 1 . Machines Repaired . | . . . . . . . . Machines Dismantled . | . . . . . . . . Machines Sabotaged . | . . . . . . . . Overloaded Fab Kills . | . . . . . . . . Hacking | -11 -10 -10 -8 -6 -5 -5 -5 --------- Run | Yrd Mat Sub Scr Fac Fac Upp Upp Machines Accessed 11 | . 3 . 3 3 2 . . Terminals 5 | . 3 . . 2 . . . Fabricators . | . . . . . . . . Repair Stations 1 | . . . . . 1 . . Recycling Units . | . . . . . . . . Scanalyzers 1 | . . . . 1 . . . Garrison Access 1 | . . . . . 1 . . Total Hacks 45 | . 10 . 26 5 4 . . Successful 34 | . 4 . 26 3 1 . . Failed 10 | . 5 . . 2 3 . . Catastrophic 3 | . . . . 1 2 . . Database Lockouts 1 | . 1 . . . . . . Manual 15 | . 10 . . 5 . . . Terminals 14 | . 10 . . 4 . . . Fabricators . | . . . . . . . . Repair Stations 3 | . . . . . 3 . . Recycling Units . | . . . . . . . . Scanalyzers 1 | . . . . 1 . . . Garrison Access 1 | . . . . . 1 . . Terminal Hacks 28 | . 2 . 26 . . . . Record 17 | . . . 17 . . . . Robot Analysis 8 | . . . 8 . . . . Prototype ID Bank 2 | . 2 . . . . . . Proto ID Catalog 1 | . . . 1 . . . . Fabricator Hacks . | . . . . . . . . Repair Station Hacks 1 | . . . . . 1 . . Refit 1 | . . . . . 1 . . Recycling Unit Hacks . | . . . . . . . . Scanalyzer . | . . . . . . . . Garrison Access Hacks . | . . . . . . . . Unauthorized Hacks 5 | . 2 . . 3 . . . Terminals 4 | . 2 . . 2 . . . Track 1 | . . . . 1 . . . Botnet 2 | . 1 . . 1 . . . Search 1 | . 1 . . . . . . Fabricators . | . . . . . . . . Repair Stations . | . . . . . . . . Recycling Units . | . . . . . . . . Scanalyzers 1 | . . . . 1 . . . Extract 1 | . . . . 1 . . . Garrison Access . | . . . . . . . . Data Cores Recovered . | . . . . . . . . Used . | . . . . . . . . Hacking Detections 6 | . 2 . . 2 2 . . Full Trace Events 1 | . 1 . . . . . . Feedback Events . | . . . . . . . . Feedback Blocked . | . . . . . . . . Robot Schematics Acquired . | . . . . . . . . Robots Built . | . . . . . . . . Authchips . | . . . . . . . . Time . | . . . . . . . . Total Robot Build Rating . | . . . . . . . . Part Schematics Acquired 5 | . . . . 5 . . . Parts Built . | . . . . . . . . Authchips . | . . . . . . . . Time . | . . . . . . . . Total Part Build Rating . | . . . . . . . . Part Studies Acquired . | . . . . . . . . Parts Repaired . | . . . . . . . . Time . | . . . . . . . . Parts Recycled . | . . . . . . . . Recycled Matter . | . . . . . . . . Retrieved Matter . | . . . . . . . . Retrieved Components . | . . . . . . . . Parts Scanalyzed . | . . . . . . . . Part Schematics Acquired . | . . . . . . . . Parts Damaged . | . . . . . . . . Bothacking | -11 -10 -10 -8 -6 -5 -5 -5 ------------ Run | Yrd Mat Sub Scr Fac Fac Upp Upp Used RIF Installer . | . . . . . . . . Robots Hacked . | . . . . . . . . Non-combat . | . . . . . . . . Combat . | . . . . . . . . Robot Hacks Applied . | . . . . . . . . Relay Couplers Released . | . . . . . . . . Fabnet Peak Effective % . | . . . . . . . . Robots Rewired 2 | . . . . . 2 . . Allies Hacked . | . . . . . . . . Hacks Repelled . | . . . . . . . . Allies | -11 -10 -10 -8 -6 -5 -5 -5 -------- Run | Yrd Mat Sub Scr Fac Fac Upp Upp Total Allies 2 | . . . . . 2 . . Largest Group 2 | . . . . . 2 . . Highest-Rated Group 78 | . . . . . 78 . . Highest-Rated Ally 49 | . . . . . 49 . . Initial UFD Resources 25 | . . . . 23 25 25 25 Total Orders . | . . . . . . . . Ally Attacks 15 | . . . . . 15 . . Total Damage 146 | . . . . . 146 . . Kills 1 | . . . . . 1 . . Allies Corrupted . | . . . . . . . . Allies Melted . | . . . . . . . . Intel | -11 -10 -10 -8 -6 -5 -5 -5 ------- Run | Yrd Mat Sub Scr Fac Fac Upp Upp Active Infowar (turns) 3450 | 21 206 316 2271 394 227 . 15 Sensors 135 | . . . . 27 108 . . Terrain 3435 | 21 206 316 2271 394 227 . . Cloaking 2 | . . . . 2 . . . ECM 16 | . . . . 1 . . 15 Robot Analysis Total 8 | . . . 8 . . . . Derelict Logs Recovered 5 | . . 1 2 . . 1 1 Drone Launches . | . . . . . . . . Drone Recoveries . | . . . . . . . . Exploration | -11 -10 -10 -8 -6 -5 -5 -5 ------------- Run | Yrd Mat Sub Scr Fac Fac Upp Upp Turns Passed 4006 | 172 206 316 2271 394 236 164 247 Spaces Moved 4504 | 62 146 310 2272 733 378 279 324 Core 958 | 2 . . . 133 260 279 284 Treads 71 | 60 11 . . . . . . Legs . | . . . . . . . . Wheels 2717 | . 135 310 2272 . . . . Hover 22 | . . . . . 22 . . Flight 736 | . . . . 600 96 . 40 Fastest Speed 30 | 50 80 90 90 30 35 50 32 Average Speed 73 | 156 93 90 90 35 48 50 48 Slowest Speed 160 | 160 160 90 90 50 100 50 150 Overloaded Moves . | . . . . . . . . Propulsion Burnouts . | . . . . . . . . Robots Hopped 3 | . . . . 2 1 . . Potential Cave-ins . | . . . . . . . . Cave-ins Triggered . | . . . . . . . . Exploration Rate (%) 37 | 3 38 19 95 20 12 63 52 Regions Visited 7 Branch Regions 4 Pre-discovered Areas 6 | . . 1 5 . . . . Known Exits Taken 3 | . . . . 1 1 1 . Unknown Exits Taken 4 | 1 1 1 1 . . . . Scrap Searched 9 | . . . 6 . . 2 1 Spaces Dug 25 | . . . . 14 . 11 . Terrain Destroyed 81 | . . . . 18 . 22 41 Melee . | . . . . . . . . Projectile 9 | . . . . 2 . . 7 AOE 72 | . . . . 16 . 22 34 Terrain Rammed . | . . . . . . . . Walls Destroyed . | . . . . . . . . Machines Disabled . | . . . . . . . . Actions | -11 -10 -10 -8 -6 -5 -5 -5 --------- Run | Yrd Mat Sub Scr Fac Fac Upp Upp Total 5145 | 103 214 336 2500 863 434 299 396 Wait 428 | . 56 14 216 66 21 13 42 Move 4491 | 61 145 309 2271 728 375 278 324 Hop 3 | . . . . 2 1 . . Pick Up 27 | 9 1 3 6 5 3 . . Fast Attach 27 | 6 2 . . 14 3 . 2 Attach 20 | 1 . . . 10 1 2 6 Detach 16 | . . . . 11 . 2 3 Swap 8 | 1 4 . 1 2 . . . Drop 38 | . 5 3 6 16 8 . . Fire 64 | 25 1 6 . 9 . 4 19 Melee . | . . . . . . . . Ram 15 | . . . . . 15 . . Kick . | . . . . . . . . Crush . | . . . . . . . . Escape Stasis . | . . . . . . . . Rewire 7 | . . . . . 7 . . Trap 1 | . . 1 . . . . . Miscellaneous . | . . . . . . . . Route ------- -11/Scrapyard -10/Materials (discovered 3 exits: [*Mat] / [*Min] / [*Sub]) -10/Subcaves -8/Scraptown (discovered 2 exits: *Fac x2) -6/Factory (discovered 5 exits: *Fac x3 / Low x2) -5/Factory (discovered 3 exits: *Fac / *Upp x2) -5/Upper Caves -5/Upper Caves (discovered 1 exit: Fac) History --------- Turn | Location | Event 11 | -11/Scrapyard | Discovered new exit (range 16) 173 | -11/Scrapyard | Entered Materials 174 | -10/Materials | Met a group of wandering Federalists 237 | -10/Materials | Discovered new exit (range 12) 283 | -10/Materials | Central database locked down 307 | -10/Materials | Build established: Mutant 310 | -10/Materials | Discovered new exit (range 8) 377 | -10/Materials | Discovered new exit (range 3) 379 | -10/Materials | Entered Subcaves 380 | -10/Subcaves | Continued accompanying wandering Federalists (3) 695 | -10/Subcaves | Entered Scraptown 758 | -8/Scraptown | Visited UFD Registry 758 | -8/Scraptown | Registered with UFD as "Phasecell" 773 | -8/Scraptown | Visited Junk Repository 806 | -8/Scraptown | Visited IN-MT5's Study 1001 | -8/Scraptown | Visited Assassins FH 1015 | -8/Scraptown | Visited TADAMA 1033 | -8/Scraptown | Visited The Evicted 1070 | -8/Scraptown | Visited Bundlers 1138 | -8/Scraptown | Visited Comm Corps 1507 | -8/Scraptown | Scanned Subdweller tech in exchange for log data 1510 | -8/Scraptown | Learned location of Warlord (-4) 1555 | -8/Scraptown | Discovered new exit (range 11) 1740 | -8/Scraptown | Visited Cartography Club 1758 | -8/Scraptown | Found Surveybot 17 Chip 1795 | -8/Scraptown | Learned location of Lower Caves (-6) 1795 | -8/Scraptown | Learned 16 Research zone layouts 1795 | -8/Scraptown | Learned 4 Recycling zone layouts 1795 | -8/Scraptown | Learned 12 Lower Caves zone layouts 1795 | -8/Scraptown | Learned 12 Upper Caves zone layouts 1795 | -8/Scraptown | Learned 20 Proximity Caves zone layouts 1795 | -8/Scraptown | Learned 24 Proximity Caves zone layouts 1795 | -8/Scraptown | Learned 4 Hub_04(d) zone layouts 1795 | -8/Scraptown | Learned location of 2 exits from Factory 1795 | -8/Scraptown | Learned location of 2 exits from Research 1795 | -8/Scraptown | Learned location of 2 exits from Upper Caves 1827 | -8/Scraptown | Found Deep Structural Scanner 1859 | -8/Scraptown | Visited Science Guys 1891 | -8/Scraptown | Visited Derelict Rescue Squad 1914 | -8/Scraptown | Visited Supply Room 1924 | -8/Scraptown | Visited Scrapoid Pod Storage 1939 | -8/Scraptown | Visited Analyses Database 2092 | -8/Scraptown | Visited Curators Association 2121 | -8/Scraptown | Visited Scrap Suit Storage 2907 | -8/Scraptown | Discovered new exit (range 13) 2966 | -8/Scraptown | Entered Factory 2966 | -6/Factory | Evolved 8 slots: Propulsion x2, Utility x6 2967 | -6/Factory | Identified exit to Lower Caves 2968 | -6/Factory | Identified exit to Factory 3115 | -6/Factory | Discovered exit to Factory (range 13) 3316 | -6/Factory | Search patrols dispatched 3360 | -6/Factory | Entered another Factory area 3360 | -5/Factory | Evolved 2 slots: Utility x2 3361 | -5/Factory | Identified exit to Upper Caves 3514 | -5/Factory | Discovered new exit (range 7) 3520 | -5/Factory | Identified exit to Factory 3529 | -5/Factory | Spotted B-75 Beast 3561 | -5/Factory | Discovered exit to Upper Caves (range 11) 3596 | -5/Factory | Entered Upper Caves 3597 | -5/Upper Caves | Identified exit to Upper Caves 3606 | -5/Upper Caves | Attracted the attention of an 0b10 outpost 3611 | -5/Upper Caves | Core integrity fell below 50% 3630 | -5/Upper Caves | Lost 3 parts (3u) 3647 | -5/Upper Caves | Destroyed 7 combat bots 3656 | -5/Upper Caves | Learned Factory trap positions 3760 | -5/Upper Caves | Entered another Upper Caves area 3770 | -5/Upper Caves | Learned Factory terminal intel 3784 | -5/Upper Caves | Attracted the attention of an 0b10 checkpoint 3797 | -5/Upper Caves | Encountered a Warlord checkpoint 3897 | -5/Upper Caves | Core integrity fell below 20% 3948 | -5/Upper Caves | Lost 3 parts (1p1u1w) 3987 | -5/Upper Caves | Attracted the attention of an 0b10 outpost 4007 | -5/Upper Caves | Destroyed by S-27 Virus with Autogun Last Messages --------------- 03825_ System corrupted: Component data lost. 03866_ System corrupted: Matter fused (-10). 03877_ Destroyed Antigrav System. 03896_ Backup Power III destroyed. 03905_ System corrupted: Component data lost. 03910_ Destroyed Tesla Rifle. 03910_ Destroyed Mic. Fission Core. 03911_ Adv. Signal Interpreter destroyed. 03915_ Destroyed Imp. Heat Sink. 03917_ Phase Cannon destroyed. 03922_ P-70 Sage destroyed. 03924_ The unstable cave ceiling collapses. 03926_ System corrupted: Component data lost. 03927_ Acquired 40 matter. 03950_ Acquired 59 matter. 03951_ Acquired 100 matter. 03986_ ECM Suite destroyed. 03987_ Y-72 Warden: "DETECTED UNIDENTIFIED DERELICT." 03991_ Y-72 Warden: "REQUESTING BACKUP." 03997_ System corrupted: Matter fused (-10). Map ----- +----------------------------------------------------+ | ?????????????????????????????????????????????????? | | ?????????????????????????????????????????????????? | | ?????????????????????????????????????????????????? | | ?????????????????????????????????????????????????? | | ?????????????????????????????????????????????????? | | ?????????????????????????????????????????????????? | | ?????????????????????????????????????????????????? | | ?????????????????????????????????????????????????? | | ?????????????????????????????????????????????????? | | ?????????????????????????????????????????????????? | | ????????????????????????????????? ????????????? | | ???????????????????????????? ### ???????????? | | ??????????????????????????? ??????????? | | ??????????????????????????# ?????????? | | ?????????????????????????## % ?????????? | | ?????????????????????????? ??????????? | | ??????????????????????????? #?????????## | | ???????????????????????????? #??????????# | | ????????????????????????????? #???????????# | | ????????????#????##?????####?? ##??######### | | ????????????# ### ???## ##?# #??# ## | | ??????????? ### ### #??# | | ??????????? ##?# ### | | ???????????# ### #?## | | ????????????# ## #??#### | | ???????????????????# @ s ## #?????# | | ???????????????????## ######### ## #?????? | | ????????????????????#####????????# #?????? | | ?????????????????????????????????# #?????? | | ????????????????????????????????# ###?????? | | ????????????????????????????????# ### ######??? | | ????????????????????????????????## #?# ## ##?? | | ?????????????????????????????????# #?# # ##? | | ????????????????????????????????? ? # ## | | ????????????????????????????????# ? ## # | | ????????????????????????????????# " ### # | | ???????????????????????????????? " ??# # | | ???????????????????????????????? "" # #?# # | | ??????????????????????????????? " ?##?## | | ??????????????????????????????? " ?"" ?????# | | ?????????????????????????????? ?"" ?"" ?????## | | ????????????????????????????????????? ?????## | | ?????????????????????????????????????? ????## | | ?????????????????????????????????????? ????# | | ????????????????????????????????????????????# # | | ????????????????????????????????????????????## # | | ?????????????????????????????????????????????# | | ????????????????????????????????????????????## | | ???????????????????????????????????????????## | | ???????????????????????????????????????????# | +----------------------------------------------------+ Best States ------------- Heat Dissipation 40 Energy Generation 11 Energy Capacity 125 Matter Stores 300 Matter Capacity 300 Sight Range 16 Robot Scan Range 15 Terrain Scan Range 16 Terrain Scan Density 1210 ECM Strength 1 Corruption Containment 8 Evasion (%) 64 Recoil Reduction 2 Offensive Hacking 24 Defensive Hacking 22 Item Schematics ----------------- Hacking Suite | -6/Factory | Extracted Adv. Terrain Scan Processor | -6/Factory | Extracted Cmb. Airjet | -6/Factory | Extracted Xenon Bombardment Thruster | -6/Factory | Extracted Mining Claw | -6/Factory | Extracted Robot Schematics ------------------ None Fabricated ------------ Nothing Repaired ---------- Nothing Studied --------- None Alien Tech Used ----------------- None Achievements -------------- Fishing Tech Challenges ------------ None Game ------ Seed LightDeuteriumNanoactuators Manual? 0 Play Time 00:38:43 Cumulative 150.9 hours Start 2026.03.12 @ 17:53:44 End 2026.03.12 @ 18:30:20 Sessions 1 Manual Loads 0 Difficulty Rogue Special Mode None Game No. 96 Rogue 92 Adventurer 4 Explorer 0 Win Type - Total 10 Types 10/0/0/0/0/0/0/0/0/0 Lore% 80 Gallery% 57 Achievement% 49 Wizard Run 0 Options --------- Layout 0 ASCII 0 Keyboard 1 Movement Vi Keybinds 0 Fullscreen 0 Font 16/SmallcapsGlow Map View 76x50 Zoom Use 0% Tactical HUD 1 Map Filters NONE Filters NONE Steam 1 RUN: 435c5d8f-f717-4e02-b864-1f6047402494